bitfinex/quotes_SOLUSD_20241218
["timestamp","ask_amount","ask_price","bid_price","bid_amount"]
[1734564268312,22.32410487,207.01,206.97,20.0]
[1734564268895,22.32410487,207.02,206.96,0.12549]
[1734564269515,0.90584864,207.04,206.97,0.12549]
[1734564269812,22.32410487,207.09,207.03,0.12549]
[1734564270012,22.32410487,207.11,207.04,22.32410487]
[1734564270193,22.32410487,207.11,207.05,0.12549]
[1734564270391,22.32410487,207.12,207.05,22.44959487]
[1734564270920,22.32410487,207.13,207.07,0.12549]
[1734564272120,22.32410487,207.12,207.05,22.32410487]
[1734564272506,22.32410487,207.13,207.06,0.12549]
[1734564272706,7.0376213,207.16,207.06,0.12549]
[1734564272707,22.32410487,207.12,207.06,0.12549]
[1734564273012,22.32410487,207.14,207.07,22.32410487]
[1734564273621,22.32410487,207.14,207.08,0.12549]
[1734564273804,22.32410487,207.2,207.13,22.44959487]
[1734564274409,22.32410487,207.21,207.13,22.44959487]
[1734564274813,22.32410487,207.18,207.11,24.44360487]
[1734564275129,22.32410487,207.17,207.12,0.12549]
[1734564275617,22.32410487,207.2,207.14,0.12549]
[1734564275825,2.1823,207.26,207.16,0.12549]
[1734564275826,22.32410487,207.22,207.16,0.12549]
[1734564276125,22.32410487,207.24,207.18,0.12549]
[1734564276514,22.32410487,207.25,207.18,22.44959487]
[1734564276896,22.32410487,207.25,207.18,0.12549]
[1734564277102,22.32410487,207.23,207.16,22.32410487]
[1734564277320,22.32410487,207.23,207.17,0.12549]
[1734564277527,22.32410487,207.25,207.17,22.44959487]
[1734564277705,22.32410487,207.25,207.19,0.12549]
[1734564279101,22.32410487,207.28,207.22,0.12549]
[1734564279308,22.32410487,207.32,207.27,20.12549]
[1734564279501,22.32410487,207.34,207.27,22.44959487]
[1734564280226,22.32410487,207.34,207.26,20.72347084]
[1734564280227,22.32410487,207.37,207.3,22.44959487]
[1734564280954,22.32410487,207.36,207.3,0.12549]
[1734564281419,22.32410487,207.37,207.3,22.44959487]
[1734564282604,22.32410487,207.37,207.3,0.12549]
[1734564282825,22.32410487,207.33,207.3,20.0]
[1734564283512,22.32410487,207.32,207.26,20.12549]
[1734564283712,22.32410487,207.32,207.26,0.12549]
[1734564285331,22.32410487,207.34,207.28,0.12549]
[1734564285537,22.32410487,207.36,207.29,22.32410487]
[1734564285753,22.32410487,207.39,207.32,22.44959487]
[1734564286038,22.32410487,207.4,207.34,0.12549]
[1734564286252,6.4781,207.43,207.34,0.12549]
[1734564286253,22.32410487,207.37,207.34,0.12549]
[1734564286631,22.32410487,207.37,207.33,0.12549]
[1734564287149,22.32410487,207.38,207.31,22.44959487]
[1734564287377,22.32410487,207.36,207.32,20.0]
[1734564287530,22.32410487,207.36,207.29,28.65440487]
[1734564287733,22.32410487,207.31,207.26,20.0]
[1734564287964,22.32410487,207.32,207.28,0.12549]
[1734564288146,22.32410487,207.33,207.28,20.12549]
[1734564288329,22.32410487,207.35,207.31,0.12549]
[1734564288567,22.32410487,207.35,207.29,0.12549]
[1734564289067,22.32410487,207.36,207.29,22.44959487]
[1734564289247,22.32410487,207.36,207.32,20.0]
[1734564289979,22.32410487,207.38,207.33,20.12549]
[1734564290173,22.32410487,207.39,207.33,0.12549]
[1734564291012,22.32410487,207.35,207.3,20.0]
[1734564291175,22.32410487,207.34,207.3,20.0]
[1734564291364,22.32410487,207.37,207.33,0.12549]
[1734564291868,0.90413972,207.45,207.35,0.12549]
[1734564292038,0.90390431,207.46,207.34,2.29239]
[1734564292848,0.90390431,207.46,207.34,0.12549]
[1734564293044,22.32410487,207.37,207.34,20.12549]
[1734564293250,22.32410487,207.36,207.29,24.49100487]
[1734564293468,22.32410487,207.36,207.32,20.0]
[1734564293660,22.32410487,207.38,207.33,0.12549]
[1734564293970,22.32410487,207.39,207.33,0.12549]
[1734564294970,0.904268,207.42,207.33,0.12549]
[1734564295191,22.32410487,207.39,207.35,20.12549]
[1734564295386,22.32410487,207.38,207.35,0.12549]
[1734564295675,22.32410487,207.39,207.35,20.12549]
[1734564296559,22.32410487,207.38,207.33,0.12549]
[1734564296754,22.32410487,207.35,207.31,20.0]
[1734564296964,22.32410487,207.32,207.22,24.49100487]
[1734564297186,22.32410487,207.29,207.22,2.1669]
[1734564297779,22.32410487,207.29,207.23,0.12549]
[1734564297969,22.32410487,207.3,207.23,0.12549]
[1734564298284,22.32410487,207.3,207.23,22.44959487]
[1734564298506,22.32410487,207.31,207.23,22.44959487]
[1734564298657,3.1704,207.37,207.27,20.12549]
[1734564298658,22.32410487,207.32,207.27,20.12549]
[1734564298863,22.32410487,207.34,207.29,0.12549]
[1734564300579,22.32410487,207.35,207.28,22.44959487]
[1734564301073,22.32410487,207.37,207.3,0.12549]
[1734564301276,1.1,207.43,207.34,22.44959487]
[1734564301277,6.4755,207.43,207.34,22.44959487]
[1734564301477,22.32410487,207.41,207.35,0.12549]
[1734564301652,22.32410487,207.4,207.35,0.12549]
[1734564302050,13.95222041,207.4,207.34,0.12549]
[1734564302779,13.95222041,207.41,207.34,14.07771041]
[1734564302987,13.95222041,207.43,207.36,0.12549]
[1734564303198,14.85624229,207.42,207.37,20.0]
[1734564303783,14.85624229,207.42,207.34,13.95222041]
[1734564304079,22.32765242,207.39,207.31,22.32765242]
[1734564304286,22.32765242,207.39,207.32,0.12549]
[1734564304650,0.90418901,207.38,207.31,22.32765242]
[1734564304952,22.32765242,207.37,207.29,22.32765242]
[1734564305153,0.90434261,207.36,207.29,22.32765242]
[1734564305448,22.32765242,207.37,207.29,22.32765242]
[1734564306386,0.90429061,207.36,207.29,22.32765242]
[1734564306966,0.90429061,207.36,207.24,14.222]
[1734564307172,22.32765242,207.34,207.25,22.32765242]
[1734564307377,22.32765242,207.34,207.26,0.12549]
[1734564307378,0.90449235,207.33,207.26,0.12549]
[1734564307770,0.90449235,207.33,207.25,22.32765242]
[1734564308390,0.90436818,207.33,207.27,22.32765242]
[1734564308891,23.2320206,207.33,207.27,22.32765242]
[1734564309581,0.90436818,207.33,207.26,22.32765242]
[1734564310181,23.2320206,207.33,207.26,0.12549]
[1734564310378,23.2320206,207.33,207.26,22.45314242]
[1734564310893,23.2320206,207.33,207.2,34.39315242]
[1734564310894,22.32765242,207.27,207.19,2.1198]
[1734564311069,22.32765242,207.25,207.17,22.32765242]
[1734564311272,22.32765242,207.24,207.17,22.32765242]
[1734564311989,22.32765242,207.21,207.14,2.1198]
[1734564312175,22.32765242,207.21,207.13,22.32765242]
[1734564312379,22.32765242,207.21,207.14,0.12549]
[1734564312998,22.32765242,207.2,207.13,22.32765242]
[1734564313302,22.32765242,207.16,207.09,24.44745242]
[1734564313685,23.23284097,207.15,207.08,22.32765242]
[1734564314265,23.23284097,207.15,207.07,22.32765242]
[1734564314690,22.32765242,207.14,207.1,20.0]
[1734564314906,23.23296452,207.13,207.05,22.32765242]
[1734564315191,22.32765242,207.1,207.03,22.32765242]
[1734564315562,22.32765242,207.08,207.01,22.32765242]
[1734564315866,0.9055733,207.07,207.01,22.32765242]
[1734564316073,23.23324891,207.13,207.06,22.32765242]
[1734564316284,22.32765242,207.13,207.07,0.12549]
[1734564316483,22.32765242,207.14,207.07,22.45314242]
[1734564316691,23.23293286,207.13,207.05,22.32765242]
[1734564316996,22.32765242,207.11,207.04,22.32765242]
[1734564317408,22.32765242,207.11,207.04,0.12549]
[1734564317783,22.32765242,207.12,207.04,22.45314242]
[1734564317985,0.90542063,207.11,207.04,22.45314242]
[1734564318179,0.90542063,207.11,207.05,22.32765242]
[1734564318379,0.90542063,207.11,207.04,22.32765242]
[1734564318607,23.23307305,207.11,207.04,22.32765242]
[1734564319107,0.90542063,207.11,207.04,22.32765242]
[1734564319607,23.23307305,207.11,207.04,22.32765242]
[1734564319991,0.90542063,207.11,207.06,22.32765242]
[1734564320206,0.9054176,207.12,207.06,22.32765242]
[1734564320503,0.9054176,207.12,207.05,22.32765242]
[1734564320708,23.23307002,207.12,207.04,20.0]
[1734564321029,23.23307002,207.12,207.05,22.32765242]
[1734564321509,22.32765242,207.11,207.03,22.32765242]
[1734564321703,23.23320018,207.1,207.02,42.32765242]
[1734564322008,0.90554776,207.1,207.04,22.32765242]
[1734564322803,22.32765242,207.14,207.06,22.32765242]
[1734564322999,0.90535256,207.13,207.06,22.32765242]
[1734564323306,23.23300498,207.13,207.06,22.32765242]
[1734564323982,23.23305023,207.17,207.09,22.32765242]
[1734564324184,14.88958989,207.17,207.09,13.98419208]
[1734564324911,20.49069208,207.18,207.11,13.98419208]
[1734564325111,6.5065,207.18,207.11,13.98419208]
[1734564325312,21.39580647,207.18,207.11,13.98419208]
[1734564325787,21.39580647,207.18,207.1,13.98419208]
[1734564325990,13.98419208,207.16,207.09,13.98419208]
[1734564326207,14.88950131,207.15,207.08,13.98419208]
[1734564326412,14.88949454,207.17,207.09,13.98419208]
[1734564326591,20.49069208,207.18,207.11,13.98419208]
[1734564326796,0.90512747,207.17,207.11,13.98419208]
[1734564327003,13.98419208,207.16,207.09,13.98419208]
[1734564327201,0.90526163,207.15,207.09,13.98419208]
[1734564327690,0.90526163,207.15,207.08,33.98419208]
[1734564329405,13.98419208,207.14,207.08,20.0]
[1734564329714,13.98419208,207.12,207.04,13.98419208]
[1734564329931,13.98419208,207.12,207.05,0.12549]
[1734564330084,0.90542359,207.11,207.05,0.12549]
[1734564330486,0.90542359,207.11,207.05,13.98419208]
[1734564330688,0.90539017,207.12,207.06,13.98419208]
[1734564331020,0.90539017,207.12,207.07,13.98419208]
[1734564331633,0.90539075,207.13,207.07,13.98419208]
[1734564333200,0.90539075,207.13,207.05,13.98419208]
[1734564333510,13.98419208,207.12,207.05,13.98419208]
[1734564333812,0.90548422,207.11,207.05,13.98419208]
[1734564334702,14.8896763,207.11,207.03,13.98419208]
[1734564335212,14.8896763,207.11,207.04,13.98419208]
[1734564336092,0.90548422,207.11,207.04,13.98419208]
[1734564336795,14.8896763,207.11,207.04,13.98419208]
[1734564337821,14.8896763,207.11,207.03,13.98419208]
[1734564338117,13.98419208,207.06,206.98,13.98419208]
[1734564338296,14.88996138,207.05,206.97,13.98419208]
[1734564338497,13.98419208,207.04,206.97,13.98419208]
[1734564338697,13.98419208,207.04,206.96,13.98419208]
[1734564338698,0.90581469,207.03,206.96,13.98419208]
[1734564338915,13.98419208,207.02,206.94,13.98419208]
[1734564339092,14.89014485,207.01,206.93,13.98419208]
[1734564339295,0.90595445,207.07,207.0,13.98419208]
[1734564339619,13.98419208,207.1,207.03,13.98419208]
[1734564339787,13.98419208,207.1,206.95,0.12549]
[1734564339788,14.88978209,207.09,207.02,13.98419208]
[1734564340724,13.98419208,207.06,206.98,13.98419208]
[1734564341023,0.90572262,207.05,206.98,13.98419208]
[1734564341213,13.98419208,207.04,206.96,13.98419208]
[1734564341397,0.90581996,207.03,206.96,13.98419208]
[1734564341600,14.89001204,207.03,206.96,13.98419208]
[1734564343220,0.90581996,207.03,206.97,13.98419208]
[1734564343513,0.905836,207.02,206.97,13.98419208]
[1734564343719,14.89003568,207.04,206.97,13.98419208]
[1734564344217,14.89003568,207.04,206.93,23.902374]
[1734564344409,13.98419208,206.98,206.89,2.8413772]
[1734564344724,0.90607629,206.97,206.9,13.98419208]
[1734564345713,0.90610756,206.97,206.91,13.98419208]
[1734564345897,0.90601845,206.98,206.92,13.98419208]
[1734564346405,14.89021053,206.98,206.91,13.98419208]
[1734564346621,0.90601845,206.98,206.92,13.98419208]
[1734564346832,14.89021053,206.98,206.91,13.98419208]
[1734564347426,14.89021053,206.98,206.9,13.98419208]
[1734564347631,14.89021053,206.98,206.93,20.0]
[1734564348206,14.89021053,206.98,206.91,13.98419208]
[1734564348405,0.90601845,206.98,206.91,13.98419208]
[1734564348917,0.90601845,206.98,206.92,13.98419208]
[1734564349126,0.90609669,206.97,206.92,13.98419208]
[1734564349326,0.90609381,206.99,206.92,13.98419208]
[1734564349624,14.89028589,206.99,206.92,13.98419208]
[1734564350230,13.98419208,206.98,206.91,13.98419208]
[1734564350430,0.9061266,206.97,206.91,13.98419208]
[1734564351826,13.98419208,206.96,206.89,16.82556928]
[1734564352029,0.90623119,206.95,206.89,0.5990772]
[1734564353326,14.89042327,206.95,206.89,0.5990772]
[1734564355726,0.90623119,206.95,206.89,0.5990772]
[1734564355934,0.90623119,206.95,206.9,13.98419208]
[1734564356233,6.3174,206.99,206.9,13.98419208]
[1734564356234,0.90613844,207.0,206.94,13.98419208]
[1734564356447,0.90597656,207.03,206.98,13.98419208]
[1734564356655,7.22337656,207.04,206.98,13.98419208]
[1734564356857,7.22337656,207.04,207.0,13.98419208]
[1734564357140,0.90597656,207.04,206.99,13.98419208]
[1734564357636,0.9057517,207.05,206.99,13.98419208]
[1734564359507,14.88994936,207.08,207.01,13.98419208]
[1734564359834,13.98419208,207.12,207.05,13.98419208]
[1734564360042,14.88958326,207.13,207.06,13.98419208]
[1734564361435,14.88958326,207.13,207.04,13.98419208]
[1734564361436,13.98419208,207.12,207.04,13.98419208]
[1734564361625,13.98419208,207.12,207.01,12.20179]
[1734564361626,13.98419208,207.09,207.01,13.98419208]
[1734564361821,0.90550793,207.11,207.0,30.0]
[1734564361822,13.98419208,207.05,207.0,30.0]
[1734564362029,14.88995272,207.04,207.0,30.0]
[1734564362219,2.00577383,207.09,207.0,30.0]
[1734564362919,13.98419208,207.06,207.0,30.0]
[1734564363119,13.98419208,207.06,206.99,13.98419208]
[1734564363321,13.98419208,207.07,207.0,13.98419208]
[1734564363519,0.90565239,207.06,207.01,13.98419208]
[1734564363911,0.90565239,207.06,207.0,13.98419208]
[1734564364311,0.90565239,207.06,207.0,20.0]
[1734564364740,0.90565239,207.06,206.99,13.98419208]
[1734564364941,14.88984447,207.06,206.99,13.98419208]
[1734564365135,14.88984447,207.06,206.98,13.98419208]
[1734564367850,0.9057146,207.12,207.03,13.98419208]
[1734564368050,13.98419208,207.11,207.03,13.98419208]
[1734564368224,0.90546348,207.1,207.03,13.98419208]
[1734564368576,14.88965556,207.1,207.03,13.98419208]
[1734564368870,0.90546348,207.1,207.03,13.98419208]
[1734564369029,0.90546348,207.1,207.04,13.98419208]
[1734564369226,14.88968671,207.13,207.06,13.98419208]
[1734564369432,0.90549463,207.13,207.03,33.98419208]
[1734564369645,13.98419208,207.1,207.03,13.98419208]
[1734564369957,6.3174,207.14,207.03,13.98419208]
[1734564369958,0.90559903,207.09,207.03,13.98419208]
[1734564370838,0.90557921,207.08,207.03,13.98419208]
[1734564371150,0.90558172,207.1,207.03,13.98419208]
[1734564371651,0.90558172,207.1,207.04,13.98419208]
[1734564371848,13.98419208,207.12,207.05,0.12549]
[1734564372458,13.98419208,207.12,207.05,13.98419208]
[1734564372762,14.88965732,207.13,207.06,13.98419208]
[1734564373051,13.98419208,207.12,207.05,13.98419208]
[1734564373254,14.8895943,207.11,207.04,13.98419208]
[1734564374556,0.90540222,207.11,207.05,13.98419208]
[1734564375256,2.2221,207.16,207.02,0.12549]
[1734564375257,0.90544193,207.17,207.07,13.98419208]
[1734564375453,13.98419208,207.15,207.08,13.98419208]
[1734564375763,0.90544193,207.17,207.1,13.98419208]
[1734564375935,0.90515613,207.18,207.12,0.12549]
[1734564376136,20.55209208,207.24,207.17,13.98419208]
[1734564376444,13.98419208,207.26,207.19,13.98419208]
[1734564376753,0.90479132,207.25,207.21,13.98419208]
[1734564376938,0.90479132,207.25,207.14,2.1355]
[1734564377138,13.98419208,207.24,207.17,13.98419208]
[1734564377382,0.90499148,207.23,207.17,13.98419208]
[1734564377768,14.88918356,207.23,207.16,13.98419208]
[1734564377975,13.98419208,207.21,207.14,16.11969208]
[1734564378177,0.90505986,207.2,207.17,20.0]
[1734564378974,0.90505986,207.2,207.14,16.11969208]
[1734564380767,13.98419208,207.22,207.15,13.98419208]
[1734564380968,0.90500979,207.21,207.15,13.98419208]
[1734564381881,0.90500979,207.21,207.14,16.11969208]
[1734564382383,0.90500979,207.21,207.13,20.0]
[1734564382384,13.98419208,207.19,207.13,20.0]
[1734564382685,0.90522286,207.18,207.13,20.0]
[1734564383185,0.90522286,207.18,207.12,13.98419208]
[1734564383482,0.90522286,207.18,207.11,13.98419208]
[1734564383779,13.98419208,207.14,207.06,13.98419208]
[1734564383990,13.98419208,207.12,207.05,13.98419208]
[1734564384158,0.90548009,207.11,207.05,13.98419208]
[1734564385975,0.90546708,207.1,207.05,13.98419208]
[1734564386175,0.90547077,207.12,207.05,13.98419208]
[1734564387082,13.98419208,207.15,207.07,13.98419208]
[1734564387274,0.90533313,207.16,207.1,13.98419208]
[1734564387865,14.88952521,207.16,207.08,13.98419208]
[1734564388078,14.88952521,207.16,207.09,13.98419208]
[1734564388386,0.90533313,207.16,207.09,13.98419208]
[1734564388615,0.90533313,207.16,207.07,33.98419208]
[1734564388782,13.98419208,207.14,207.07,33.98419208]
[1734564388967,0.90546061,207.13,207.07,33.98419208]
[1734564389570,0.90546061,207.13,207.06,13.98419208]
[1734564390075,0.90546061,207.13,207.07,13.98419208]
[1734564390482,0.90538737,207.12,207.07,13.98419208]
[1734564390682,0.90539573,207.14,207.09,13.98419208]
[1734564390995,0.90526199,207.15,207.09,13.98419208]
[1734564391196,14.88945407,207.15,207.08,13.98419208]
[1734564391375,13.98419208,207.14,207.07,13.98419208]
[1734564391573,0.90542043,207.13,207.07,13.98419208]
[1734564391899,0.90542043,207.13,207.08,13.98419208]
[1734564392085,0.90532535,207.15,207.08,13.98419208]
[1734564393377,0.90532535,207.15,207.09,13.98419208]
[1734564393578,13.98419208,207.14,207.04,20.0]
[1734564393904,0.9054622,207.13,207.06,13.98419208]
[1734564396006,2.00540227,207.17,207.1,13.98419208]
[1734564396180,2.00540227,207.17,207.11,13.98419208]
[1734564397521,0.905222,207.18,207.13,13.98419208]
[1734564397798,0.90510569,207.23,207.17,33.98419208]
[1734564398100,0.90510569,207.23,207.17,13.98419208]
[1734564398280,0.90510569,207.23,207.16,13.98419208]
[1734564398476,14.88929777,207.23,207.16,13.98419208]
[1734564399097,14.88929777,207.23,207.11,0.72400052]
[1734564399098,13.98419208,207.2,207.11,0.72400052]
[1734564399276,13.98419208,207.12,206.99,13.98419208]
[1734564399478,13.98419208,207.08,206.99,13.98419208]
[1734564399686,0.90569813,207.07,206.99,13.98419208]
[1734564407499,0.90569813,207.07,207.0,0.12549]
[1734564407684,13.98419208,207.1,207.02,13.98419208]
[1734564407886,13.98419208,207.1,207.03,0.12549]
[1734564408119,0.90545381,207.09,207.03,0.12549]
[1734564408323,13.98419208,207.1,207.03,0.12549]
[1734564409191,13.98419208,207.07,207.03,20.0]
[1734564409490,14.88985598,207.06,207.03,20.0]
[1734564409904,14.88985598,207.06,206.99,13.98419208]
[1734564410099,14.88985598,207.06,207.02,20.0]
[1734564410709,0.9056639,207.06,207.02,20.0]
[1734564411614,13.98419208,207.08,207.0,13.98419208]
[1734564411806,0.90560323,207.07,207.0,13.98419208]
[1734564413116,13.98419208,207.11,207.06,20.0]
[1734564413293,13.98419208,207.11,207.05,20.0]
[1734564413294,13.98419208,207.12,207.07,20.0]
[1734564414302,13.98419208,207.13,207.06,13.98419208]
[1734564414612,13.98419208,207.14,207.07,14.10968208]
[1734564415020,13.98419208,207.13,207.07,20.12549]
[1734564415323,13.98419208,207.13,207.07,0.12549]
[1734564415618,14.88950437,207.15,207.08,13.98419208]
[1734564415795,13.98419208,207.14,207.07,14.10968208]
[1734564416404,13.98419208,207.13,207.07,20.0]
[1734564416605,13.98419208,207.14,207.07,33.98419208]
[1734564416807,13.98419208,207.13,207.07,20.0]
[1734564417919,13.98419208,207.13,207.08,0.12549]
[1734564418096,0.90528839,207.18,207.12,13.98419208]
[1734564418297,13.98419208,207.19,207.12,13.98419208]
[1734564418796,13.98419208,207.23,207.17,33.98419208]
[1734564419100,13.98419208,207.23,207.16,13.98419208]
[1734564420609,13.98419208,207.22,207.16,13.98419208]
[1734564420909,13.98419208,207.22,207.17,8.84]
[1734564421317,13.98419208,207.24,207.17,22.82419208]
[1734564421501,13.98419208,207.19,207.17,8.84]
[1734564421706,13.98419208,207.2,207.17,8.84]
[1734564421908,0.90503445,207.19,207.17,8.84]
[1734564422107,13.98419208,207.19,207.17,8.84]
[1734564422417,0.90517357,207.18,207.11,20.0]
[1734564422718,0.90517357,207.18,207.13,8.84]
[1734564422924,14.88936565,207.18,207.13,8.84]
[1734564423127,13.98419208,207.14,207.05,13.98419208]
[1734564423425,13.98419208,207.1,207.03,2.2272]
[1734564423645,13.98419208,207.07,207.04,8.84]
[1734564423795,0.90565658,207.06,206.99,21.47782434]
[1734564424198,0.90565658,207.06,206.99,13.98419208]
[1734564426021,13.98419208,207.05,206.98,2.2272]
[1734564426237,13.98419208,207.03,206.95,13.98419208]
[1734564426530,0.90585332,207.02,206.96,12.94]
[1734564426917,0.90585332,207.02,206.97,13.98419208]
[1734564427228,0.90583345,207.04,206.97,13.98419208]
[1734564428902,14.89002553,207.04,206.96,26.92419208]
[1734564429400,0.90583345,207.04,206.97,13.98419208]
[1734564429606,16.03509208,207.1,206.97,13.98419208]
[1734564429607,0.9058282,207.09,207.03,33.98419208]
[1734564429918,0.90554014,207.11,207.05,13.98419208]
[1734564430452,13.98419208,207.1,207.02,13.98419208]
[1734564430632,14.88980041,207.09,207.04,20.0]
[1734564431026,14.88980041,207.09,207.02,13.98419208]
[1734564431220,0.90560833,207.09,207.02,13.98419208]
[1734564431426,13.98419208,207.1,207.03,13.98419208]
[1734564432030,13.98419208,207.11,207.04,13.98419208]
[1734564432349,0.9054779,207.1,207.04,13.98419208]
[1734564432523,14.88966998,207.1,207.03,13.98419208]
[1734564432728,13.98419208,207.09,207.02,13.98419208]
[1734564432927,0.90557,207.08,207.02,13.98419208]
[1734564433139,0.90557,207.08,207.03,33.98419208]
[1734564433343,0.90553396,207.09,207.03,33.98419208]
[1734564433541,13.98419208,207.1,207.03,33.98419208]
[1734564433741,13.98419208,207.11,207.05,0.12549]
[1734564434244,13.98419208,207.11,207.04,13.98419208]
[1734564434452,0.9054246,207.1,207.04,13.98419208]
[1734564436024,13.98419208,207.05,206.96,25.0192]
[1734564436334,13.98419208,207.05,206.97,13.98419208]
[1734564436335,0.90576987,207.04,206.97,13.98419208]
[1734564439038,0.90576987,207.04,206.99,13.98419208]
[1734564439239,0.90581507,207.03,206.99,13.98419208]
[1734564439459,0.90581875,207.05,206.99,13.98419208]
[1734564439834,0.90581875,207.05,207.0,13.98419208]
[1734564440047,15.99000442,207.1,207.02,13.98419208]
[1734564440326,14.89000442,207.1,207.03,13.98419208]
[1734564440544,14.88974235,207.13,207.06,13.98419208]
[1734564440751,13.98419208,207.13,207.06,13.98419208]
[1734564441527,13.98419208,207.13,207.0,13.98419208]
[1734564441528,13.98419208,207.12,207.05,13.98419208]
[1734564442343,6.5403,207.14,207.04,13.98419208]
[1734564442549,13.98419208,207.12,207.05,13.98419208]
[1734564442742,13.98419208,207.11,207.04,33.98419208]
[1734564443051,0.90548611,207.1,207.04,13.98419208]
[1734564443255,0.90548611,207.1,207.04,20.0]
[1734564443442,14.88967819,207.1,207.06,20.0]
[1734564443757,0.90548611,207.1,207.04,33.98419208]
[1734564445952,0.90548611,207.1,207.05,13.98419208]
[1734564446156,0.90553555,207.11,207.05,13.98419208]
[1734564446534,14.88972763,207.11,207.04,33.98419208]
[1734564447042,0.90553555,207.11,207.05,13.98419208]
[1734564447955,0.90553555,207.11,207.06,2.2208]
[1734564448132,0.90553476,207.16,207.1,13.98419208]
[1734564448335,14.88943767,207.19,207.11,13.98419208]
[1734564449052,0.90524559,207.19,207.12,13.98419208]
[1734564449439,14.88943767,207.19,207.11,13.98419208]
[1734564450036,13.98419208,207.13,207.01,2.2208]
[1734564450242,0.90554636,207.12,207.05,13.98419208]
[1734564450648,13.98419208,207.17,207.1,13.98419208]
[1734564450841,0.90531431,207.16,207.1,13.98419208]
[1734564451038,1.1,207.18,207.11,13.98419208]
[1734564451242,0.90517294,207.17,207.12,13.98419208]
[1734564451463,0.90517294,207.17,207.13,13.98419208]
[1734564451754,0.90516436,207.22,207.17,23.776884]
[1734564451953,0.90516436,207.22,207.17,37.76107608]
[1734564452361,0.90516436,207.22,207.18,13.98419208]
[1734564452546,15.08419208,207.27,207.21,23.776884]
[1734564452745,0.90491466,207.26,207.21,23.776884]
[1734564453056,14.88910674,207.26,207.2,23.776884]
[1734564453255,0.90491466,207.26,207.2,37.76107608]
[1734564453433,14.88910674,207.26,207.2,23.776884]
[1734564454463,0.90491466,207.26,207.2,37.76107608]
[1734564454641,0.90489197,207.25,207.2,23.776884]
[1734564454840,0.90489197,207.25,207.2,37.76107608]
[1734564455042,0.90483163,207.27,207.2,37.76107608]
[1734564455541,0.90483163,207.27,207.22,23.776884]
[1734564455739,0.90483163,207.27,207.22,13.98419208]
[1734564455941,13.98419208,207.23,207.11,14.2912]
[1734564456142,14.88927792,207.22,207.14,13.98419208]
[1734564457457,14.88927792,207.22,207.15,23.776884]
[1734564458765,0.90508584,207.22,207.15,37.76107608]
[1734564459845,0.90508584,207.22,207.17,37.76107608]
[1734564460050,0.90494483,207.23,207.18,23.776884]
[1734564460251,0.90494483,207.23,207.18,37.76107608]
[1734564460781,0.90494483,207.23,207.18,23.776884]
[1734564461247,13.98419208,207.21,207.14,13.98419208]
[1734564461579,14.8893181,207.2,207.13,13.98419208]
[1734564462885,13.98419208,207.19,207.12,23.776884]
[1734564463058,0.90520189,207.18,207.12,23.776884]
[1734564463262,0.90520189,207.18,207.12,37.76107608]
[1734564463976,0.905202,207.19,207.12,37.76107608]
[1734564464136,0.905202,207.17,207.12,37.76107608]
[1734564464642,0.90518564,207.19,207.12,37.76107608]
[1734564465373,0.90518564,207.19,207.14,23.776884]
[1734564466197,0.90518564,207.19,207.13,23.776884]
[1734564467091,1.1,207.21,207.15,13.98419208]
[1734564467384,0.90500509,207.22,207.17,23.776884]
[1734564468683,0.90500509,207.22,207.16,23.776884]
[1734564469083,0.90500509,207.22,207.16,13.98419208]
[1734564469505,0.90500509,207.22,207.17,23.776884]
[1734564471088,0.90500274,207.28,207.2,13.98419208]
[1734564471288,13.98419208,207.27,207.2,33.98419208]
[1734564471493,0.45954541,207.26,207.21,23.776884]
[1734564472003,13.98419208,207.24,207.18,23.776884]
[1734564472207,13.98419208,207.2,207.13,13.98419208]
[1734564472402,0.45954541,207.19,207.13,13.98419208]
[1734564472703,0.45954541,207.19,207.14,13.98419208]
[1734564472878,0.45954541,207.21,207.16,13.98419208]
[1734564473715,1.1,207.28,207.19,23.776884]
[1734564473716,13.98419208,207.25,207.19,23.776884]
[1734564473903,0.45954541,207.24,207.19,23.776884]
[1734564475706,0.45954541,207.24,207.19,37.76107608]
[1734564475906,0.45954541,207.25,207.19,37.76107608]
[1734564476114,0.45954541,207.25,207.12,0.12549]
[1734564476115,0.45954541,207.25,207.21,37.76107608]
[1734564476296,0.45954541,207.27,207.21,37.76107608]
[1734564476697,14.44373749,207.27,207.21,23.776884]
[1734564477207,13.98419208,207.26,207.2,23.776884]
[1734564477415,0.45954541,207.25,207.2,23.776884]
[1734564477616,0.45954541,207.25,207.21,23.776884]
[1734564478309,0.45954541,207.26,207.21,23.776884]
[1734564479216,0.45954541,207.26,207.21,37.76107608]
[1734564479399,0.45954541,207.28,207.22,13.98419208]
[1734564479599,0.45954541,207.28,207.22,23.776884]
[1734564481114,0.45954541,207.28,207.23,13.98419208]